bitfinex/quotes_ETHUSD_20240910
["timestamp","ask_amount","ask_price","bid_price","bid_amount"]
[1726010687263,0.416418,2401.4,2401.0,8.32957]
[1726010687459,0.416418,2401.4,2401.0,4.16475]
[1726010687776,0.416418,2401.4,2400.8,4.29589715]
[1726010688010,2.2558,2401.1,2400.8,0.0474528]
[1726010688614,4.16495,2401.0,2400.8,0.0474528]
[1726010688921,6.15770419,2401.1,2400.8,0.0474528]
[1726010689072,10.32246419,2401.1,2400.8,0.0474528]
[1726010689277,5.61364342,2401.0,2400.8,0.0474528]
[1726010690267,3.90190419,2400.9,2400.8,0.0474528]
[1726010690463,5.61364342,2401.0,2400.8,0.0474528]
[1726010690696,2.2558,2401.1,2400.8,0.0474528]
[1726010696624,2.2558,2401.1,2400.3,0.08330531]
[1726010696625,4.16504,2401.0,2400.7,0.0541048]
[1726010696838,4.16514,2400.9,2400.7,0.0541048]
[1726010697011,14.48824419,2400.8,2400.7,0.0541048]
[1726010697384,15.03824419,2400.8,2400.7,0.0541048]
[1726010697583,21.18803871,2400.8,2400.7,0.0541048]
[1726010697789,24.18803871,2400.8,2400.7,0.0541048]
[1726010698189,20.02276871,2400.8,2400.7,0.0541048]
[1726010699396,24.18803871,2400.8,2400.7,0.0541048]
[1726010700187,25.09647039,2400.8,2400.7,0.0541048]
[1726010701116,29.26174039,2400.8,2400.7,0.0541048]
[1726010701427,6.42246,2400.0,2399.9,0.0441019]
[1726010701581,6.97246,2400.0,2399.9,0.0441019]
[1726010701787,9.97246,2400.0,2399.9,0.0441019]
[1726010702187,14.13912,2400.0,2399.9,0.0441019]
[1726010702476,5.8058,2400.0,2399.9,0.0441019]
[1726010702636,2.8058,2400.0,2399.9,0.0441019]
[1726010703704,6.97246,2400.0,2399.9,0.0441019]
[1726010704188,7.614501,2400.0,2399.9,0.0441019]
[1726010704618,10.614501,2400.0,2399.9,0.0441019]
[1726010705332,14.781161,2400.0,2399.9,0.0441019]
[1726010705829,6.42191,2400.4,2399.9,0.0441019]
[1726010706034,0.55,2400.3,2399.9,0.0441019]
[1726010706295,2.2558,2400.4,2399.9,4.2109319]
[1726010706573,13.76127,2400.7,2400.2,4.16629]
[1726010706737,6.42127,2400.7,2400.2,4.16629]
[1726010707335,6.42127,2400.7,2400.0,8.33304]
[1726010707643,4.16562,2400.6,2400.1,4.67129351]
[1726010707839,0.55,2400.5,2400.1,4.67129351]
[1726010708048,2.2558,2400.7,2400.2,4.16626]
[1726010708232,0.55,2400.6,2400.2,5.05003935]
[1726010708433,9.42134,2400.7,2400.2,5.05003935]
[1726010708744,9.42134,2400.7,2400.2,0.88377935]
[1726010708959,9.42134,2400.7,2400.1,0.50484351]
[1726010709145,4.1658,2400.5,2400.1,0.50484351]
[1726010709357,4.1658,2400.5,2400.0,8.33301]
[1726010709544,4.1658,2400.5,2400.0,8.33307]
[1726010710272,13.58693,2400.7,2400.1,4.16648]
[1726010710476,0.55,2400.6,2400.1,5.08797651]
[1726010712167,4.71564,2400.6,2400.1,5.08797651]
[1726010712375,4.16581,2400.5,2400.1,0.92149651]
[1726010712668,4.16581,2400.5,2400.0,8.33303]
[1726010713579,4.16581,2400.5,2400.0,8.33307]
[1726010713749,4.16581,2400.5,2400.0,4.1665]
[1726010714153,4.16624,2400.3,2399.9,0.0441019]
[1726010714466,4.16666,2400.0,2399.9,0.0441019]
[1726010714934,4.71666,2400.0,2399.9,0.0441019]
[1726010715370,11.88332,2400.0,2399.9,0.0441019]
[1726010716947,3.0,2400.0,2399.9,0.0441019]
[1726010717270,2.3748,2400.2,2399.9,0.0441019]
[1726010717489,0.55,2400.1,2399.9,0.0441019]
[1726010718473,3.0,2400.2,2399.9,0.0441019]
[1726010718838,11.35098587,2400.5,2399.9,4.2108219]
[1726010718839,6.54065,2400.5,2399.9,4.2108219]
[1726010719075,4.56369974,2400.4,2399.9,4.2108219]
[1726010719445,8.72975974,2400.4,2399.9,4.2108219]
[1726010720213,12.63747154,2400.4,2399.9,4.2108219]
[1726010720533,4.16614,2400.3,2399.9,0.0441019]
[1726010720732,4.16666,2400.0,2399.9,0.0441019]
[1726010721050,1.50123515,2400.3,2399.9,0.0441019]
[1726010721257,0.55,2400.2,2399.9,0.0441019]
[1726010723209,4.71635,2400.2,2399.9,0.0441019]
[1726010723681,0.55,2400.2,2399.9,0.0441019]
[1726010723981,1.96388967,2400.2,2399.9,0.0441019]
[1726010724788,0.55,2400.2,2399.9,0.0441019]
[1726010724942,6.9077118,2400.4,2399.9,0.0441019]
[1726010725146,0.55,2400.3,2399.9,4.2108219]
[1726010725345,2.36644718,2400.3,2399.9,4.2108219]
[1726010727088,6.53259718,2400.3,2399.9,0.0441019]
[1726010727246,4.16642,2400.2,2399.9,0.0441019]
[1726010727869,0.55,2400.1,2399.9,0.0441019]
[1726010728991,2.0106979,2400.1,2399.9,0.0441019]
[1726010729170,6.1771979,2400.1,2399.9,0.0441019]
[1726010729861,8.0743718,2400.0,2399.9,0.0441019]
[1726010730061,8.6243718,2400.0,2399.9,0.0441019]
[1726010730265,11.6243718,2400.0,2399.9,0.0441019]
[1726010730798,15.7910318,2400.0,2399.9,0.0441019]
[1726010732471,11.6243718,2400.0,2399.9,0.0441019]
[1726010732676,7.4577118,2400.0,2399.9,0.0441019]
[1726010732975,13.42853198,2400.0,2399.9,0.0441019]
[1726010737400,17.59519198,2400.0,2399.9,0.0441019]
[1726010737813,21.76185198,2400.0,2399.9,0.0441019]
[1726010738169,27.92036378,2400.0,2399.9,0.0441019]
[1726010738701,32.31936378,2400.0,2399.9,0.0441019]
[1726010739666,32.31936378,2400.0,2399.1,0.0441019]
[1726010739667,4.16805,2399.2,2399.1,0.0441019]
[1726010739868,10.3265618,2399.2,2399.1,0.0441019]
[1726010740119,13.8765618,2399.2,2399.1,0.0441019]
[1726010740468,18.0446118,2399.2,2399.1,0.0441019]
[1726010740845,22.2126618,2399.2,2399.1,0.0441019]
[1726010741108,22.2126618,2399.2,2398.3,0.0441019]
[1726010741109,12.2465918,2398.4,2398.3,0.0441019]
[1726010741469,15.7965918,2398.4,2398.3,0.0441019]
[1726010741870,15.7965918,2398.4,2397.5,4.2149719]
[1726010741871,4.16998,2398.1,2397.5,4.17087]
[1726010742070,7.4577118,2398.4,2398.0,0.0482658]
[1726010742071,3.55,2398.4,2398.0,0.0482658]
[1726010742520,4.16902,2398.7,2398.1,4.1699]
[1726010742811,0.55,2398.6,2398.1,8.3397]
[1726010742970,0.55,2398.7,2398.2,0.9123438]
[1726010743167,4.71893,2398.7,2398.2,0.9123438]
[1726010743474,4.71893,2398.7,2398.1,4.16984]
[1726010743475,8.88797,2398.7,2398.1,4.16984]
[1726010743836,8.88797,2398.7,2398.3,8.33909]
[1726010743837,0.55,2398.7,2398.3,8.33909]
[1726010744006,7.16867,2398.9,2398.3,8.33909]
[1726010744007,7.16867,2398.9,2398.3,4.180876]
[1726010744207,8.0765818,2398.8,2398.3,0.011376]
[1726010744713,4.1692,2398.6,2398.3,0.011376]
[1726010744925,4.16894,2398.7,2398.3,0.011376]
[1726010745436,4.71912,2398.6,2398.3,0.011376]
[1726010752359,4.16933,2398.5,2398.3,0.011376]
[1726010752646,0.55,2398.4,2398.3,0.011376]
[1726010752846,8.88888,2398.4,2398.3,0.011376]
[1726010753253,0.55,2398.4,2398.3,0.011376]
[1726010754235,5.191382,2398.4,2398.3,0.011376]
[1726010754726,5.191382,2398.4,2398.3,0.04811834]
[1726010755442,9.360822,2398.4,2398.3,0.04811834]
[1726010755749,9.360822,2398.4,2398.3,0.011376]
[1726010757026,9.360822,2398.4,2398.3,0.04882165]
[1726010757230,12.360822,2398.4,2398.3,0.011376]
[1726010760464,12.360822,2398.4,2398.3,0.04889086]
[1726010760765,12.360822,2398.4,2398.3,0.011376]
[1726010762636,12.36082167,2398.4,2398.3,0.011376]
[1726010764235,8.19138167,2398.4,2398.3,0.011376]
[1726010764434,7.71943967,2398.4,2398.3,0.011376]
[1726010764831,7.71943967,2398.4,2398.3,0.04893124]
[1726010765467,7.71943967,2398.4,2398.3,0.011376]
[1726010766842,3.54999967,2398.4,2398.3,0.011376]
[1726010767047,7.71943967,2398.4,2398.3,0.011376]
[1726010767464,7.71943967,2398.4,2398.3,0.04898317]
[1726010767682,7.71943967,2398.4,2398.3,0.011376]
[1726010767873,7.71943967,2398.4,2398.3,0.04898317]
[1726010769473,9.29909282,2398.4,2398.3,0.04898317]
[1726010770083,13.46853282,2398.4,2398.3,0.04898317]
[1726010774845,20.11477282,2398.4,2398.3,0.04898317]
[1726010775191,20.11477282,2398.4,2398.3,0.011376]
[1726010778493,24.28421282,2398.4,2398.3,0.011376]
[1726010780791,24.28421282,2398.4,2398.0,0.0482658]
[1726010780792,14.98668,2398.1,2398.0,0.0482658]
[1726010781091,14.98668,2398.1,2398.0,5.8e-06]
[1726010781092,23.6143518,2398.1,2398.0,5.8e-06]
[1726010781277,26.6143518,2398.1,2398.0,5.8e-06]
[1726010781684,12.2497318,2397.5,2397.1,0.0482658]
[1726010781995,12.7997318,2397.5,2397.1,0.0482658]
[1726010782798,15.7997318,2397.5,2397.1,0.0482658]
[1726010783998,15.7997318,2397.5,2397.1,2.4090658]
[1726010785393,15.7997318,2397.5,2397.1,0.0482658]
[1726010785757,18.2765318,2397.5,2397.1,0.0482658]
[1726010786263,15.7997318,2397.5,2397.1,0.0482658]
[1726010786463,17.37938495,2397.5,2397.1,0.0482658]
[1726010787089,21.55039495,2397.5,2397.1,0.0482658]
[1726010787990,17.64268315,2397.5,2397.1,0.0482658]
[1726010788658,20.13238315,2397.5,2397.1,0.0482658]
[1726010798013,24.30339315,2397.5,2397.1,0.0482658]
[1726010799415,20.13238315,2397.5,2397.1,0.0482658]
[1726010799614,24.30339315,2397.5,2397.1,0.0482658]
[1726010800287,21.94132679,2397.5,2397.1,0.0482658]
[1726010802714,19.45162679,2397.5,2397.1,0.0482658]
[1726010803519,19.45162679,2397.5,2397.2,0.0449625]
[1726010804807,19.45162679,2397.5,2396.6,2.3271523]
[1726010804808,2.4955,2397.1,2396.6,0.0358523]
[1726010805159,16.82164364,2396.7,2396.6,0.0358523]
[1726010805279,16.82164364,2396.7,2395.9,2.5040523]
[1726010805280,10.15618364,2396.0,2395.9,0.0358523]
[1726010805482,5.98256364,2396.0,2395.9,2.5040523]
[1726010805714,9.53256364,2396.0,2395.9,2.5040523]
[1726010806617,3.55,2396.0,2395.9,2.5040523]
[1726010807316,7.72362,2396.0,2395.9,0.0358523]
[1726010807724,7.72362,2396.0,2395.9,2.5040523]
[1726010807929,3.55,2396.0,2395.9,2.5040523]
[1726010809546,7.72362,2396.0,2395.9,2.5040523]
[1726010810403,11.89724,2396.0,2395.9,2.5040523]
[1726010811518,13.47689315,2396.0,2395.9,0.0358523]
[1726010814250,11.89724,2396.0,2395.9,0.0358523]
[1726010816941,22.85998,2396.0,2395.9,0.0358523]
[1726010817121,22.85998,2396.0,2395.9,2.3e-06]
[1726010817432,22.85998,2396.0,2395.3,0.0358523]
[1726010817433,8.34932,2395.4,2395.3,0.0358523]
[1726010817772,16.65611259,2395.4,2395.3,0.0358523]
[1726010818055,15.82118059,2395.4,2395.3,0.0358523]
[1726010818578,15.82118059,2395.4,2394.7,2.4682]
[1726010818579,4.17544,2395.0,2394.7,2.4682]
[1726010818859,4.17544,2395.0,2394.7,2.5150459]
[1726010819264,4.17513,2395.2,2394.7,2.5150459]
[1726010819423,0.55,2395.1,2394.7,2.5150459]
[1726010820168,4.7252,2395.1,2394.7,2.5150459]
[1726010820315,0.55,2395.1,2394.7,3.18414349]
[1726010820520,4.17516,2395.2,2394.8,2.4682]
[1726010820817,4.17516,2395.2,2394.8,3.20420735]
[1726010821017,8.35029,2395.2,2394.8,3.20420735]
[1726010821256,4.17522,2395.1,2394.8,2.4682]
[1726010821662,4.17522,2395.1,2394.8,2.5150459]
[1726010821835,4.17513,2395.2,2394.8,2.5150459]
[1726010822163,2.4955,2395.1,2394.8,0.0468459]
[1726010822323,12.27292059,2394.9,2394.8,0.0468459]
[1726010822669,16.99845059,2394.9,2394.8,0.0468459]
[1726010822911,19.99845059,2394.9,2394.8,0.0468459]
[1726010823204,26.66948059,2394.9,2394.8,5.9e-06]
[1726010823395,29.97539056,2394.9,2394.8,5.9e-06]
[1726010823984,25.79986056,2394.9,2394.8,5.9e-06]
[1726010824582,29.97539056,2394.9,2394.8,5.9e-06]
[1726010824879,25.79986056,2394.9,2394.8,5.9e-06]
[1726010825215,23.30436056,2394.9,2394.8,5.9e-06]
[1726010825800,19.12883056,2394.9,2394.8,5.9e-06]
[1726010826525,19.12883056,2394.9,2394.1,0.0528794]
[1726010826526,8.35352,2394.2,2394.1,0.0528794]
[1726010826714,3.92186059,2394.2,2394.1,0.0528794]
[1726010827009,3.0,2394.8,2394.3,4.17656]
[1726010827217,8.09769059,2394.8,2394.4,0.664476]
[1726010827397,4.17589,2394.7,2394.2,6.64479]
[1726010827787,4.17565,2394.9,2394.3,4.17641]
[1726010827990,4.17588,2394.8,2394.4,3.132661]
[1726010828188,3.92186059,2394.8,2394.1,2.5210794]
[1726010828392,4.17635,2394.5,2394.1,2.5210794]
[1726010828914,4.17627,2394.5,2394.2,2.4682]
[1726010829127,4.17593,2394.7,2394.2,2.4682]
[1726010829423,0.55,2394.6,2394.2,2.4682]
[1726010829807,7.72616,2394.6,2394.2,2.4682]
[1726010830125,7.72617,2394.6,2394.2,2.4682]
[1726010830327,3.55,2394.6,2394.2,2.4682]
[1726010830543,3.92186059,2394.3,2394.1,0.0528794]
[1726010830740,8.90352,2394.2,2394.1,0.0528794]
[1726010830897,11.90352,2394.2,2394.1,0.0528794]
[1726010831094,13.90371806,2394.2,2394.1,0.0528794]
[1726010831303,20.57597806,2394.2,2394.1,0.0528794]
[1726010832636,18.08047806,2394.2,2394.1,0.0528794]
[1726010833219,20.49147806,2394.2,2394.1,0.0528794]
[1726010833933,4.1785,2393.2,2393.1,0.0528794]
[1726010834160,4.17827,2393.4,2393.1,2.3723794]
[1726010834312,3.92186059,2393.5,2393.1,2.3723794]
[1726010834500,0.55,2393.4,2393.1,2.3723794]
[1726010834841,7.47186059,2393.4,2393.1,2.3723794]
[1726010834995,3.0,2393.4,2393.1,2.3723794]
[1726010835201,4.17801,2393.5,2393.1,2.3723794]
[1726010835710,8.35613,2393.5,2393.1,2.3723794]
[1726010835910,4.17817,2393.4,2393.1,2.3723794]
[1726010836314,4.17844,2393.3,2393.1,2.3723794]
[1726010837044,4.1785,2393.2,2393.1,2.3723794]
[1726010837625,4.1785,2393.2,2393.1,0.0528794]
[1726010837861,12.82886059,2393.2,2393.1,0.0528794]
[1726010839765,20.00736059,2393.2,2393.1,0.0528794]
[1726010839967,15.82886059,2393.2,2393.1,0.0528794]
[1726010842489,11.65036059,2393.2,2393.1,0.0528794]
[1726010842685,3.55,2393.2,2393.1,0.0528794]
[1726010842983,7.7285,2393.2,2393.1,0.0528794]
[1726010843150,11.65036059,2393.2,2393.1,0.0528794]
[1726010845139,15.82886059,2393.2,2393.1,0.0528794]
[1726010847283,4.17811,2393.5,2393.2,2.3877]
[1726010847490,1.576714,2393.6,2393.2,3.04963294]
[1726010847690,5.754614,2393.6,2393.2,2.3877]
[1726010848046,7.34,2394.0,2393.4,6.56574]
[1726010848286,4.17728,2393.9,2393.4,2.3877]
[1726010848581,4.17728,2393.9,2393.4,6.56585]
[1726010848784,3.92186059,2394.1,2393.4,6.56585]
[1726010848785,12.27595059,2394.1,2393.5,4.17797]
[1726010848945,8.09854059,2394.3,2393.7,4.17761]
[1726010849361,4.17685,2394.2,2393.7,4.17761]
[1726010849763,4.17685,2394.2,2393.7,5.251938]
[1726010850259,8.09854059,2394.3,2393.7,5.251938]
[1726010850455,7.77264738,2394.5,2393.9,6.56487]
[1726010850697,3.92186059,2394.9,2394.2,2.3877]
[1726010850869,7.99473858,2395.3,2394.2,2.3877]
[1726010850870,8.09709059,2395.1,2394.2,2.3877]
[1726010851071,4.17553,2395.0,2394.4,4.17631]
[1726010851396,8.09751059,2394.9,2394.3,4.17644]
[1726010851582,8.09751059,2394.9,2394.3,4.85756641]
[1726010851893,12.27314059,2394.9,2394.3,4.85756641]
[1726010852074,4.17574,2394.8,2394.3,4.85756641]
[1726010852269,8.09749059,2394.9,2394.3,4.85756641]
[1726010853080,0.55,2394.8,2394.3,4.85756641]
[1726010856195,0.55,2394.8,2394.5,6.56383]
[1726010856495,7.51820797,2395.3,2394.5,6.56383]
[1726010856496,0.55,2395.0,2394.5,6.56383]
[1726010856709,7.72513,2395.2,2394.5,6.56383]
[1726010856910,7.72513,2395.2,2394.6,4.17605]
[1726010857220,4.17519,2395.1,2394.6,4.17605]
[1726010857397,0.55,2395.0,2394.5,7.30432451]
[1726010857867,0.55,2395.0,2394.5,11.48044451]
[1726010858071,0.55,2395.0,2394.6,1.15639639]
[1726010858303,0.55,2395.1,2394.7,4.17576]
[1726010858715,0.55,2395.2,2394.8,2.3877]
[1726010859267,3.59634738,2395.3,2395.0,4.17534]
[1726010859470,7.34,2395.7,2395.2,4.17492]
[1726010859704,5.78320028,2395.7,2395.1,4.17506]
[1726010860329,9.70520087,2395.7,2395.0,2.3877]
[1726010860497,8.09647059,2395.5,2395.0,2.3877]
[1726010860673,4.17481,2395.4,2395.0,2.3877]
[1726010860971,4.72492,2395.3,2394.8,6.56341]
[1726010861374,0.55,2395.3,2394.8,2.3877]
[1726010861616,0.55,2395.3,2394.8,6.56331]
[1726010861973,0.55,2395.3,2394.8,2.3877]
[1726010862178,4.72856271,2395.2,2394.8,2.3877]
[1726010862376,0.55,2395.1,2394.5,6.43353]
[1726010862610,4.17539,2395.0,2394.5,6.43353]
[1726010863084,4.17563,2394.9,2394.5,2.2574]
[1726010863289,9.29624527,2395.0,2394.5,2.2574]
[1726010863486,0.55,2394.9,2394.5,2.2574]
[1726010863687,1.50926459,2394.9,2394.5,2.2574]
[1726010864192,4.1758,2394.8,2394.5,2.2574]
[1726010864391,1.50926459,2394.9,2394.5,2.2574]
[1726010864591,4.17576,2394.8,2394.5,2.2574]
[1726010865215,4.72555,2394.9,2394.5,2.2574]
[1726010865532,4.72555,2394.9,2394.3,6.43387]
[1726010866512,4.72555,2394.9,2394.3,10.61035]
[1726010866713,4.72555,2394.9,2394.3,10.61034]
[1726010866930,12.06858271,2395.2,2394.5,2.2574]
[1726010867120,4.17538,2395.0,2394.5,2.2574]
[1726010867292,4.17538,2395.0,2394.5,6.43362]
[1726010867860,3.0,2395.1,2394.6,4.17602]
[1726010867861,7.17528,2395.1,2394.6,4.17602]
[1726010868119,3.0,2395.1,2394.6,8.35194]
[1726010868290,3.0,2395.1,2394.7,4.17588]
[1726010870194,3.0,2395.1,2394.8,2.2574]
[1726010870504,4.17478,2395.4,2394.8,2.2574]
[1726010870683,3.55,2395.3,2394.8,2.2574]
[1726010871517,13.92792059,2395.3,2394.6,4.17594]
[1726010871723,0.355,2395.2,2394.6,4.17594]
[1726010871927,0.55,2395.1,2394.6,4.17594]
[1726010872522,4.72519,2395.1,2394.6,4.17594]
[1726010873588,0.55,2395.1,2394.7,4.17586]
[1726010873799,0.55,2395.2,2394.9,2.2574]
[1726010876614,0.55,2395.3,2394.9,2.2574]
[1726010877232,0.55,2395.3,2394.9,6.43283]
[1726010877408,3.0,2395.4,2394.9,6.43283]
[1726010877409,11.5146,2395.5,2395.0,4.17527]
[1726010877725,0.55,2395.4,2395.0,4.17527]
[1726010878726,0.55,2395.4,2395.1,4.17518]
[1726010879631,0.55,2395.4,2395.0,4.17527]
[1726010879632,0.55,2395.4,2395.0,8.35052]
[1726010880306,0.55,2395.4,2395.1,4.17518]
[1726010881829,7.72449,2395.5,2395.0,4.17526]
[1726010882198,7.72449,2395.5,2395.0,8.35053]
[1726010882399,7.72449,2395.5,2395.0,4.17526]
[1726010883719,4.17467,2395.4,2394.9,2.2574]
[1726010883924,5.0188608,2395.4,2394.9,2.2574]
[1726010884693,5.0188608,2395.4,2394.8,4.17556]
[1726010884694,4.17493,2395.3,2394.8,4.17556]
[1726010884931,0.55,2395.2,2394.8,4.17556]
[1726010886297,4.17531,2395.1,2394.4,11.56634]
[1726010886504,0.55,2395.0,2394.4,7.39]
[1726010886707,0.55,2395.0,2394.4,7.47351973]
[1726010886942,0.55,2395.0,2394.5,4.17606]
[1726010887133,0.55,2395.0,2394.6,4.17603]
[1726010887445,0.55,2395.0,2394.5,4.17606]
[1726010888208,4.72542,2395.0,2394.5,8.35221]
[1726010888434,4.72542,2395.0,2394.5,4.17606]
[1726010888619,4.72542,2395.0,2394.5,8.3522]
[1726010888808,4.72542,2395.0,2394.5,4.17606]
[1726010890121,4.17557,2394.9,2394.4,0.0835197]
[1726010890305,5.065639,2394.9,2394.4,0.0835197]
[1726010890509,0.55,2395.0,2394.5,4.17609]
[1726010890720,0.55,2395.0,2394.6,4.17603]
[1726010890919,4.72537,2395.0,2394.5,8.35222]
[1726010891133,4.72537,2395.0,2394.5,4.17609]
[1726010891946,0.55,2395.0,2394.5,8.35222]
[1726010892258,0.55,2395.0,2394.6,4.17602]
[1726010892421,0.55,2395.0,2394.5,8.35222]
[1726010893455,0.55,2395.0,2394.5,8.35223]
[1726010893812,0.55,2395.0,2394.5,4.17609]
[1726010894051,0.55,2395.0,2394.5,8.35224]
[1726010894250,0.55,2395.0,2394.5,4.17609]
[1726010895152,4.17555,2394.9,2394.5,4.17609]
[1726010897748,4.17583,2394.8,2394.3,10.75985]
[1726010897956,4.17583,2394.8,2394.3,6.58335]
[1726010898331,4.17583,2394.8,2394.3,10.75983]
[1726010899045,4.17583,2394.8,2394.3,6.58335]
[1726010900014,4.17583,2394.8,2394.3,10.75985]
[1726010900451,4.17583,2394.8,2394.3,6.58335]
[1726010900613,5.296383,2394.8,2394.3,6.58335]
[1726010900814,4.17624,2394.5,2393.9,14.91528166]
[1726010901058,0.55,2394.7,2394.1,4.17683]
[1726010901059,4.17601,2394.7,2394.1,4.17683]
[1726010901257,4.72607,2394.6,2394.1,4.17683]
[1726010901553,4.17628,2394.5,2394.1,4.17683]
[1726010901739,6.48049,2394.4,2393.8,0.0149636]
[1726010901915,0.55,2394.3,2393.9,4.17717]
[1726010902111,0.55,2394.3,2393.9,8.35434]
[1726010902539,4.17628,2394.5,2394.0,0.08353986]
[1726010902741,4.17628,2394.5,2394.0,4.26053986]
[1726010904135,4.17616,2394.6,2394.1,4.17689]
[1726010904336,0.55,2394.5,2394.1,4.17689]
[1726010904536,0.55,2394.5,2394.0,8.43754986]
[1726010904739,0.55,2394.5,2394.0,4.26053986]
[1726010905114,5.846877,2394.5,2394.0,8.43755986]
[1726010905386,5.846877,2394.5,2394.0,4.26053986]
[1726010906027,5.846877,2394.5,2394.0,8.43755986]
[1726010906261,4.72624,2394.5,2394.0,8.43755986]
[1726010906461,0.55,2394.5,2394.1,4.17689]
[1726010906674,0.55,2394.5,2394.0,8.43753986]
[1726010907139,0.55,2394.5,2394.0,8.43755986]
[1726010908435,0.55,2394.5,2394.0,4.26053986]
[1726010908637,6.23908006,2394.5,2394.0,4.17707]
[1726010910243,6.23908006,2394.5,2393.9,4.17716]
[1726010910631,6.23908006,2394.5,2393.9,8.35435]
[1726010911470,6.23908006,2394.5,2394.0,4.17708]
[1726010911830,6.23908006,2394.5,2394.0,4.17707]
[1726010912461,4.72626,2394.5,2394.0,4.17707]
[1726010913345,0.55,2394.5,2393.9,4.17727]
[1726010913531,4.17633,2394.5,2393.9,4.17715]
[1726010913737,0.55,2394.4,2393.9,8.35433]
[1726010914044,0.55,2394.4,2393.9,4.17715]
[1726010914237,4.72651,2394.4,2393.9,4.17715]
[1726010914429,5.616794,2394.4,2393.9,4.17715]
[1726010914669,2.4036,2394.3,2393.9,4.17715]
[1726010915381,2.4036,2394.6,2394.1,4.17692]
[1726010915557,2.4036,2394.6,2394.2,4.60279596]
[1726010915558,0.55,2394.5,2394.2,4.60279596]
[1726010915759,0.55,2394.5,2394.2,4.17675]
[1726010916134,0.55,2394.5,2394.1,4.1768]
[1726010916461,3.55,2394.6,2394.1,4.1768]
[1726010916770,8.739106,2394.6,2394.1,4.1768]
[1726010918034,4.562956,2394.6,2394.1,8.35361]
[1726010918338,7.72607,2394.6,2394.1,4.1768]
[1726010922146,3.55,2394.6,2394.1,4.1768]
[1726010922334,7.72606,2394.6,2394.1,4.1768]
[1726010922535,7.72606,2394.6,2394.1,8.35364]
[1726010923170,7.72606,2394.6,2394.1,4.1768]
[1726010923780,11.51567,2394.9,2394.4,4.1763]
[1726010923936,0.55,2394.8,2394.4,8.3526]
[1726010924581,0.55,2394.8,2394.4,9.19621213]
[1726010924752,4.17567,2394.9,2394.4,9.19621213]
[1726010925136,4.17567,2394.9,2394.4,4.1763]
[1726010925337,4.17567,2394.9,2394.2,4.17664]
[1726010925338,2.4992,2394.6,2394.2,4.17664]
[1726010926460,2.4992,2394.6,2394.0,4.17707]
[1726010926675,4.843769,2394.5,2394.0,8.35407]
[1726010926879,2.4992,2394.3,2393.8,11.5823136]
[1726010927186,6.42106059,2394.3,2393.8,0.0149636]
[1726010927391,4.72677,2394.2,2393.8,0.0149636]
[1726010927534,7.72677,2394.2,2393.8,0.0149636]
[1726010927739,1.41478306,2394.1,2393.8,0.0149636]
[1726010927984,4.72711,2394.0,2393.8,0.0149636]
[1726010928686,0.55,2394.0,2393.8,0.0149636]
[1726010929187,7.17677,2394.2,2393.8,0.0149636]
[1726010929188,0.55,2394.1,2393.8,0.0149636]
[1726010931585,11.35362,2394.2,2393.8,0.0149636]
[1726010931586,3.0,2394.2,2393.8,0.0149636]
[1726010931837,3.0,2394.3,2393.9,4.17726]
[1726010932438,4.72677,2394.2,2393.8,0.0149636]
[1726010933457,0.55,2394.2,2393.8,4.1924136]
[1726010935183,3.0,2394.3,2393.8,4.1924136]
[1726010935390,7.17659,2394.3,2393.8,4.1924136]
[1726010935986,3.0,2394.3,2393.9,4.17725]
[1726010936195,3.0,2394.3,2393.9,4.17718]
[1726010936499,3.0,2394.3,2393.9,6.53138]
[1726010937505,3.0,2394.3,2393.9,4.17718]
[1726010938078,4.17652,2394.4,2394.0,4.17709]
[1726010938260,4.17652,2394.4,2393.9,9.19967053]
[1726010940110,7.17617,2394.6,2394.1,4.17691]
[1726010940307,10.22552,2394.5,2393.9,5.03528166]
[1726010940601,10.22552,2394.5,2394.0,0.99995247]
[1726010940916,10.22552,2394.5,2393.9,4.17715]
[1726010940917,10.22552,2394.5,2393.9,4.1882264]
[1726010941411,10.22552,2394.5,2394.0,1.00005985]
[1726010941708,4.17642,2394.4,2393.9,4.1882264]
[1726010942866,4.17642,2394.4,2394.0,2.50031468]
[1726010943096,0.55,2394.5,2394.1,4.17683]
[1726010943305,0.55,2394.6,2394.2,4.84437447]
[1726010943616,5.4992,2394.9,2394.4,4.17628]
[1726010943905,3.0,2394.8,2394.4,4.17628]
[1726010946100,8.78697291,2394.9,2394.4,4.17628]
[1726010946283,0.55,2394.8,2394.4,4.17628]
[1726010950786,0.55,2394.8,2394.4,8.3526]
[1726010950989,0.55,2394.8,2394.4,4.17628]
[1726010951327,0.55,2394.8,2394.4,8.3526]
[1726010953715,0.55,2394.8,2394.5,4.17619]
[1726010954011,3.0,2395.1,2394.6,4.1759]
[1726010954208,0.55,2395.0,2394.6,4.1759]
[1726010955328,0.55,2395.0,2394.5,4.17619]
[1726010955329,2.4892,2394.9,2394.5,4.17611]
[1726010955493,2.4892,2394.9,2394.6,4.17601]
[1726010956230,0.55,2395.0,2394.6,4.17601]
[1726010956530,0.55,2395.0,2394.6,4.61374996]
[1726010957234,0.55,2395.0,2394.6,6.97264996]
[1726010958598,0.55,2395.0,2394.7,4.17583]
[1726010959541,8.47633291,2395.2,2394.7,4.17583]
[1726010959542,7.34,2395.6,2395.4,4.17466]
[1726010959688,6.66317,2395.8,2395.3,4.17484]
[1726010959894,2.4892,2395.8,2395.3,8.34956]
[1726010960305,6.66317,2395.8,2395.3,8.34946]
[1726010960496,6.66317,2395.8,2395.3,4.17472]
[1726010960818,3.0,2395.7,2395.3,4.17472]
[1726010961308,3.0,2395.7,2395.3,8.34947]
[1726010961508,0.55,2395.6,2395.3,4.17472]
[1726010961911,0.55,2395.6,2395.4,4.17466]
[1726010962098,0.0288532,2396.0,2395.4,9.26774932]
[1726010962298,0.0288532,2396.0,2395.4,8.43281132]
[1726010963804,3.0288532,2396.0,2395.4,8.43281132]